fUSD/lending_fUSD_20240527
["ID","MTS","AMOUNT","RATE_DAILY","PERIOD"]
[328085733,1716843032623,-1094.73660363,0.00025914,2]
[328085734,1716843032633,-2005.18444528,0.00025915,2]
[328085735,1716843032644,-546.89,0.00026533,2]
[328085736,1716843032656,-160.56921426,0.00026788,2]
[328085737,1716843032669,-4170.55448335,0.000268,2]
[328085738,1716843032682,-600.0,0.00027006,2]
[328085739,1716843032695,-13884.50267821,0.00027177,2]
[328085740,1716843032707,-8144.85936206,0.00027178,2]
[328085741,1716843032720,-333.54418076,0.00027178,2]
[328085742,1716843032734,-155.79372783,0.00027179,2]
[328085743,1716843032749,-46429.3221537,0.0002718,2]
[328085744,1716843032762,-254.38273532,0.0002718,2]
[328085745,1716843032772,-152.00749589,0.00027186,2]
[328085746,1716843032795,-328.89273856,0.00027253,2]
[328085747,1716843032808,-153.0803639,0.0002727,2]
[328085748,1716843032821,-151.41,0.0002727,2]
[328085749,1716843032835,-151.41,0.00027271,2]
[328085750,1716843032851,-151.41,0.00027271,2]
[328085751,1716843032867,-156.75017604,0.00027276,2]
[328085752,1716843032879,-276.19941096,0.00027276,2]
[328085753,1716843032891,-155.62132118,0.00027276,2]
[328085754,1716843032905,-274.64908023,0.00027276,2]
[328085755,1716843032922,-180.277158,0.00027276,2]
[328085756,1716843032938,-241.16792878,0.00027276,2]
[328085757,1716843032949,-215.19998558,0.00027277,2]
[328085758,1716843032960,-533.23069534,0.00027277,2]
[328085759,1716843032971,-193.26072069,0.00027278,2]
[328085760,1716843032984,-340.81796251,0.00027278,2]
[328085761,1716843033001,-19233.78524302,0.00027278,2]
[328085762,1716843033025,-407.95649314,0.00027278,2]
[328085763,1716843033038,-429.64413932,0.00027278,2]
[328085764,1716843033052,-411.10810731,0.00027278,2]
[328085765,1716843033064,-643.52892318,0.00027278,2]
[328085766,1716843033077,-264.30700406,0.00027278,2]
[328085767,1716843033092,-335.92803474,0.00027278,2]
[328085768,1716843033105,-1351.78246428,0.00027278,2]
[328085769,1716843033119,-360.23745295,0.00027278,2]
[328085770,1716843033132,-228.57231626,0.00027278,2]
[328085771,1716843033146,-911.90484081,0.00027278,2]
[328085772,1716843033159,-163.62386284,0.00027278,2]
[328085773,1716843033172,-270.64041316,0.00027278,2]
[328085774,1716843033186,-266.37775155,0.00027278,2]
[328085775,1716843033199,-167.78575426,0.00027278,2]
[328085776,1716843033211,-155.0,0.00027278,2]
[328085777,1716843033225,-155.27279243,0.00027278,2]
[328085778,1716843033237,-155.52789445,0.00027278,2]
[328085779,1716843033251,-177.06616414,0.00027278,2]
[328085780,1716843033264,-344.36762572,0.00027278,2]
[328085781,1716843033276,-155.05292557,0.00027278,2]
[328085782,1716843033288,-249.58655348,0.00027278,2]
[328085783,1716843033300,-2259.00739337,0.00027278,2]
[328085784,1716843033316,-168.82071287,0.00027278,2]
[328085785,1716843033329,-204.67725318,0.00027278,2]
[328085786,1716843033340,-1924.56770598,0.00027278,2]
[328085787,1716843033354,-273.01392061,0.00027278,2]
[328085788,1716843033366,-623.69279949,0.00027278,2]
[328085789,1716843033381,-318.74671446,0.00027278,2]
[328085790,1716843033392,-452.06612962,0.00027278,2]
[328085791,1716843033404,-201.87206982,0.00027278,2]
[328085792,1716843033417,-4797.72892935,0.00027279,2]
[328085793,1716843033428,-194.38792793,0.00027279,2]
[328085794,1716843033440,-434.88311724,0.00027279,2]
[328085795,1716843033452,-156.95980486,0.0002728,2]
[328085796,1716843033464,-397208.85516655,0.0002728,2]
[328085797,1716843033481,-2043.28539504,0.0002728,2]
[328085798,1716843033496,-40198.8173,0.0002728,2]
[328085799,1716843033511,-503.15430007,0.0002728,2]
[328085800,1716843033530,-27586.1865127,0.0002728,2]
[328085801,1716843033543,-4064.0,0.0002728,2]
[328085813,1716843037838,-9636.47957636,0.0002728,2]
[328085814,1716843037850,-3721.97640317,0.0002728,2]
[328085815,1716843037861,-2550.06231732,0.0002728,2]
[328085816,1716843037872,-1264.53415681,0.0002728,2]
[328085817,1716843037883,-731.43518576,0.0002728,2]
[328085818,1716843037929,-16884.61816,0.0002728,2]
[328085819,1716843037941,-179524.59581225,0.0002728,2]
[328085820,1716843037950,-270.19939067,0.0002728,2]
[328085821,1716843037960,-96485.204797,0.00027281,7]
[328085822,1716843037971,-300.32,0.00027281,7]
[328085823,1716843037983,-1153.0,0.00027281,7]
[328085824,1716843037994,-3498.68,0.00027281,7]
[328085825,1716843038008,-18045.0000001,0.00027281,7]
[328085826,1716843038019,-36144.5508469,0.00027281,7]
[328085827,1716843038027,-153.83178018,0.00027294,2]
[328085828,1716843038036,-152.00749589,0.00027332,2]
[328085829,1716843038046,-153.83178018,0.00027513,2]
[328085830,1716843038055,-161.44222683,0.00027521,2]
[328085831,1716843038065,-600.0,0.00027554,2]
[328085832,1716843038074,-154.20405101,0.0002759,2]
[328085833,1716843038083,-1000.0,0.00027766,2]
[328085834,1716843038093,-490.72,0.00027801,2]
[328085835,1716843038103,-153.77036265,0.00027808,2]
[328085837,1716843038111,-8144.85936198,0.00027854,2]
[328085839,1716843038121,-46429.32215364,0.00027856,2]
[328085841,1716843038130,-254.3827353,0.00027894,2]
[328085843,1716843038139,-818.27,0.00027974,2]
[328085845,1716843038149,-154.20405101,0.00028052,2]
[328085847,1716843038158,-500.0,0.00028102,2]
[328085849,1716843038168,-500.0,0.00028102,2]
[328085851,1716843038177,-600.0,0.00028102,2]
[328085853,1716843038186,-800.0,0.00028137,2]
[328085855,1716843038195,-800.0,0.00028137,2]
[328085856,1716843038204,-800.0,0.00028137,2]
[328085858,1716843038213,-800.0,0.00028137,2]
[328085860,1716843038223,-154.20664879,0.0002836,2]
[328085862,1716843038232,-152.69860282,0.000285,2]
[328085864,1716843038241,-2547.67199883,0.0002853,2]
[328085866,1716843038255,-2625.31380456,0.0002853,2]
[328085868,1716843038267,-2971.87355859,0.0002853,2]
[328085870,1716843038276,-21413.70397772,0.00028532,2]
[328085872,1716843038287,-2928.06624738,0.00028532,2]
[328085875,1716843038298,-1659.99434364,0.00028532,2]
[328085877,1716843038313,-2040.00565636,0.00028532,2]
[328085880,1716843038329,-17579.208608,0.00028532,2]
[328085883,1716843038353,-808.34332054,0.00028532,2]
[328085885,1716843038362,-118.54679646,0.00028545,2]
[328085887,1716843038373,-38.14820017,0.00028545,2]
[328085888,1716843038384,-150.0,0.00028587,2]
[328085889,1716843038393,-153.40439104,0.00028603,2]
[328085890,1716843038402,-254.3827353,0.00028608,2]
[328085891,1716843038411,-75.22467353,0.0002865,2]
[328085892,1716843038423,-424.77532647,0.0002865,2]
[328085893,1716843038433,-600.0,0.0002865,2]
[328085894,1716843038442,-150.0,0.00028654,2]
[328085895,1716843038452,-986.22,0.00028665,2]
[328085896,1716843038461,-12368.21904831,0.00028709,2]
[328085897,1716843038471,-150.0,0.00028865,2]
[328085898,1716843038480,-193.00675504,0.00028917,2]
[328085899,1716843038489,-8223.25,0.00029009,2]
[328085900,1716843038500,-1115.85,0.00029009,2]
[328085901,1716843038509,-150.0,0.00029145,2]
[328085902,1716843038518,-150.0,0.00029181,2]
[328085903,1716843038527,-151.41,0.00029198,2]
[328085904,1716843038537,-600.0,0.00029198,2]
[328085905,1716843038546,-500.0,0.00029198,2]
[328085906,1716843038556,-8144.85936198,0.00029206,2]
[328085907,1716843038565,-4967.73083422,0.00029208,2]
[328085908,1716843038577,-9396.73999988,0.00029208,2]
[328085909,1716843038589,-572.78982099,0.00029208,2]
[328085917,1716843040496,-21031.59728268,0.00029208,2]
[328085918,1716843040531,-4976.34619377,0.00029208,2]
[328085919,1716843040543,-820.14280387,0.00029208,2]
[328085920,1716843040566,-4663.97521823,0.00029208,2]
[328085921,1716843040576,-153.83178018,0.00029219,2]
[328085922,1716843040586,-153.77036265,0.00029247,2]
[328085923,1716843040596,-254.3827353,0.00029322,2]
[328085924,1716843040606,-150.0,0.00029376,2]
[328085925,1716843040615,-546.89,0.00029481,2]
[328085926,1716843040627,-10000.0,0.00029497,2]
[328085927,1716843040642,-150.0,0.00029628,2]
[328085928,1716843040652,-500.0,0.00029746,2]
[328085929,1716843040662,-870.49,0.00029753,2]
[328085930,1716843040671,-150.0,0.00029794,2]
[328085931,1716843040681,-150.0,0.00029824,2]
[328085932,1716843040690,-56342.91119308,0.0002984,2]
[328085933,1716843040699,-8144.85936198,0.00029882,2]
[328085934,1716843040709,-46429.32215364,0.00029884,2]
[328085935,1716843040718,-150.0,0.00029895,2]
[328085936,1716843040727,-800.0,0.00029973,2]
[328085937,1716843040737,-500.0,0.0003,2]
[328085938,1716843040747,-343.19636755,0.0003,2]
[328085939,1716843040759,-5587.520581,0.0003,2]
[328085940,1716843040768,-599.02072928,0.0003,2]
[328085941,1716843040778,-150.0,0.00030027,2]
[328085942,1716843040787,-150.0,0.00030027,2]
[328085943,1716843040796,-150.0,0.00030027,2]
[328085944,1716843040805,-150.0,0.00030027,2]
[328085945,1716843040814,-150.0,0.00030027,2]
[328085946,1716843040823,-175.87789393,0.00030036,2]
[328085947,1716843040833,-162.10824669,0.00030036,2]
[328085948,1716843040842,-254.3827353,0.00030036,2]
[328085949,1716843040851,-4290.29306904,0.00030036,2]
[328085950,1716843040860,-427.41802308,0.00030036,2]
[328085951,1716843040870,-158.96189399,0.00030036,2]
[328085952,1716843040879,-182.98503448,0.00030041,7]
[328085953,1716843040888,-157.052805,0.00030048,36]
[328085954,1716843040897,-490.72,0.00030065,2]
[328085955,1716843040907,-150.0,0.00030068,2]
[328085956,1716843040916,-157.052805,0.00030098,34]
[328085957,1716843040925,-153.0803639,0.00030126,2]
[328085958,1716843040935,-153.0803639,0.00030126,2]
[328085959,1716843040945,-151.41,0.00030126,2]
[328085960,1716843040954,-155.0,0.00030134,2]
[328085961,1716843040963,-10947.42399419,0.00030134,4]
[328085962,1716843040972,-412.09288491,0.00030134,10]
[328085963,1716843040982,-405.14365341,0.00030134,4]
[328085964,1716843040991,-573.72051391,0.00030134,7]
[328085965,1716843041002,-228.05178254,0.00030134,4]
[328085966,1716843041441,-41.31482053,0.00030134,4]
[328085967,1716843041451,-309.49146638,0.00030134,4]
[328085968,1716843041461,-156.38886085,0.00030134,4]
[328085969,1716843041471,-4432.96607497,0.00030135,4]
[328085970,1716843041480,-150.0,0.00030135,7]
[328085971,1716843041489,-29269.41530632,0.00030136,11]
[328085972,1716843041502,-162146.76847774,0.00030136,11]
[328085973,1716843041512,-4139.07148196,0.00030136,11]
[328085974,1716843041526,-403.47012699,0.00030136,11]
[328085975,1716843041538,-128510.51690174,0.00030136,11]
[328085976,1716843041549,-17321.24999998,0.00030136,11]
[328085977,1716843041560,-567.60046644,0.00030136,11]
[328085978,1716843041575,-6706.7,0.00030136,11]
[328085979,1716843041588,-3668.99999996,0.00030136,11]
[328086085,1716843042942,-3179.5383,0.00030136,11]
[328086086,1716843042954,-696.045196,0.00030136,11]
[328086087,1716843042965,-1502.25651494,0.00030136,11]
[328086088,1716843043052,-14114.36256797,0.00030136,11]
[328086089,1716843043063,-595.3338411,0.00030136,11]
[328086090,1716843043074,-34024.47536131,0.00030136,11]
[328086091,1716843043084,-722.0,0.00030136,2]
[328086092,1716843043093,-517.61690033,0.00030136,7]
[328086093,1716843043102,-1042.01517981,0.00030136,4]
[328086094,1716843043111,-207.23801847,0.00030136,4]
[328086095,1716843043120,-201.89027058,0.00030136,4]
[328086096,1716843043129,-2000.0,0.00030136,2]
[328086097,1716843043138,-200.0,0.00030136,2]
[328086098,1716843043147,-500.0,0.00030136,6]
[328086099,1716843043156,-151.0,0.00030136,7]
[328086100,1716843043165,-500.0,0.00030136,6]
[328086101,1716843043174,-533.15236341,0.00030136,6]
[328086102,1716843043183,-527.92729815,0.00030136,6]
[328086103,1716843043192,-500.0,0.00030136,6]
[328086104,1716843043202,-372.07516231,0.00030136,6]
[328086105,1716843043211,-500.0,0.00030136,6]
[328086106,1716843043220,-521.11637755,0.00030136,6]
[328086107,1716843043229,-500.0,0.00030136,6]
[328086108,1716843043239,-500.0,0.00030136,6]
[328086109,1716843043248,-351.91798383,0.00030136,6]
[328086110,1716843043258,-500.0,0.00030136,6]
[328086111,1716843043267,-500.0,0.00030136,6]
[328086112,1716843043276,-544.61063836,0.00030136,6]
[328086113,1716843043285,-500.0,0.00030136,6]
[328086114,1716843043294,-526.9880381,0.00030136,6]
[328086115,1716843043304,-500.0,0.00030136,6]
[328086116,1716843043318,-500.0,0.00030136,6]
[328086117,1716843043327,-310.30192388,0.00030136,6]
[328086118,1716843043337,-509.41357371,0.00030136,6]
[328086119,1716843043347,-304.16531616,0.00030136,6]
[328086120,1716843043356,-512.77564518,0.00030136,6]
[328086121,1716843043365,-500.0,0.00030136,6]
[328086122,1716843043374,-543.78730234,0.00030136,6]
[328086123,1716843043383,-500.0,0.00030136,6]
[328086124,1716843043395,-512.42016213,0.00030136,6]
[328086125,1716843043406,-507.29536219,0.00030136,6]
[328086126,1716843043415,-500.0,0.00030136,6]
[328086128,1716843043425,-500.0,0.00030136,6]
[328086130,1716843043434,-578.72,0.00030136,6]
[328086131,1716843043444,-500.0,0.00030136,6]
[328086132,1716843043453,-500.0,0.00030136,6]
[328086133,1716843043462,-502.825513,0.00030136,6]
[328086134,1716843043472,-500.0,0.00030136,6]
[328086135,1716843043481,-500.0,0.00030136,6]
[328086137,1716843043490,-381.31,0.00030136,6]
[328086139,1716843043500,-529.93,0.00030136,6]
[328086141,1716843043509,-500.0,0.00030136,6]
[328086143,1716843043518,-500.0,0.00030136,6]
[328086145,1716843043527,-630.08,0.00030136,6]
[328086147,1716843043537,-500.0,0.00030136,6]
[328086148,1716843043546,-500.0,0.00030136,6]
[328086149,1716843043555,-500.0,0.00030136,6]
[328086150,1716843043563,-500.0,0.00030136,6]
[328086151,1716843043572,-500.0,0.00030136,6]
[328086152,1716843043581,-500.0,0.00030136,6]
[328086153,1716843043590,-235.17,0.00030136,6]
[328086154,1716843043600,-511.34462149,0.00030136,6]
[328086155,1716843043609,-500.0,0.00030136,6]
[328086157,1716843043621,-500.8769967,0.00030136,6]
[328086159,1716843043630,-500.0,0.00030136,6]
[328086161,1716843043640,-352.86,0.00030136,6]
[328086163,1716843043649,-501.60201311,0.00030136,6]
[328086165,1716843043659,-500.0,0.00030136,6]
[328086166,1716843043668,-500.0,0.00030136,6]
[328086167,1716843043677,-520.33957566,0.00030136,6]
[328086168,1716843043686,-503.09513602,0.00030136,6]
[328086169,1716843043695,-500.0,0.00030136,6]
[328086170,1716843043705,-531.88241599,0.00030136,6]
[328086171,1716843043716,-507.34417221,0.00030136,6]
[328086172,1716843043726,-500.0,0.00030136,6]
[328086173,1716843043738,-500.0,0.00030136,6]
[328086174,1716843043748,-295.45,0.00030136,6]
[328086175,1716843043757,-462.16107327,0.00030136,6]
[328086177,1716843044352,-37.83892673,0.00030136,6]
[328086178,1716843044363,-335.02107333,0.00030136,6]
[328086181,1716843044375,-164.97892667,0.00030136,6]
[328086183,1716843044386,-500.0,0.00030136,6]
[328086185,1716843044395,-500.69519451,0.00030136,6]
[328086187,1716843044404,-633.63,0.00030136,6]
[328086189,1716843044414,-500.0,0.00030136,6]
[328086191,1716843044423,-500.0,0.00030136,6]
[328086193,1716843044432,-508.05615669,0.00030136,6]
[328086214,1716843044631,-500.0,0.00030136,6]
[328086216,1716843044642,-500.0,0.00030136,6]
[328086218,1716843044652,-185.61,0.00030136,6]
[328086221,1716843044661,-500.0,0.00030136,6]
[328086223,1716843044671,-500.0,0.00030136,6]
[328086224,1716843044681,-522.90923,0.00030136,6]
[328086227,1716843044691,-500.0,0.00030136,6]
[328086229,1716843044700,-524.42485679,0.00030136,6]
[328086231,1716843044710,-500.0,0.00030136,6]
[328086233,1716843044720,-500.0,0.00030136,6]
[328086235,1716843044731,-521.94765908,0.00030136,6]
[328086237,1716843044740,-500.0,0.00030136,6]
[328086239,1716843044750,-500.0,0.00030136,6]
[328086240,1716843044760,-407.51,0.00030136,6]
[328086242,1716843044770,-519.90997977,0.00030136,6]
[328086245,1716843044780,-500.0,0.00030136,6]
[328086247,1716843044790,-530.12438513,0.00030136,6]
[328086249,1716843044799,-515.12316016,0.00030136,6]
[328086251,1716843044808,-500.0,0.00030136,6]
[328086253,1716843044817,-500.0,0.00030136,6]
[328086255,1716843044826,-500.0,0.00030136,6]
[328086256,1716843044835,-502.47639607,0.00030136,6]
[328086258,1716843044842,-500.0,0.00030136,6]
[328086260,1716843044851,-500.0,0.00030136,6]
[328086262,1716843044860,-500.0,0.00030136,6]
[328086264,1716843044870,-500.0,0.00030136,6]
[328086266,1716843044879,-553.7763186,0.00030136,6]
[328086268,1716843044888,-501.01750986,0.00030136,6]
[328086270,1716843044897,-500.0,0.00030136,6]
[328086273,1716843044907,-545.11,0.00030136,6]
[328086275,1716843044917,-500.0,0.00030136,6]
[328086277,1716843044926,-604.04,0.00030136,6]
[328086279,1716843044935,-500.0,0.00030136,6]
[328086280,1716843044944,-500.0,0.00030136,6]
[328086281,1716843044953,-525.40889313,0.00030136,6]
[328086282,1716843044962,-500.0,0.00030136,6]
[328086283,1716843044971,-500.0,0.00030136,6]
[328086284,1716843044980,-303.42,0.00030136,6]
[328086285,1716843044989,-506.83832692,0.00030136,6]
[328086286,1716843044998,-500.0,0.00030136,6]
[328086287,1716843045010,-185.67,0.00030136,6]
[328086288,1716843045019,-514.0600409,0.00030136,6]
[328086289,1716843045028,-500.0,0.00030136,6]
[328086290,1716843045037,-500.0,0.00030136,6]
[328086291,1716843045047,-218.8468784,0.00030136,6]
[328086292,1716843045057,-500.0,0.00030136,6]
[328086293,1716843045066,-500.0,0.00030136,6]
[328086294,1716843045077,-627.08395327,0.00030136,6]
[328086295,1716843045087,-500.0,0.00030136,6]
[328086296,1716843045096,-500.0,0.00030136,6]
[328086297,1716843045106,-283.63138741,0.00030136,6]
[328086298,1716843045115,-500.0,0.00030136,6]
[328086300,1716843045124,-310.6035269,0.00030136,6]
[328086302,1716843045133,-500.0,0.00030136,6]
[328086304,1716843045143,-500.0,0.00030136,6]
[328086306,1716843045153,-500.0,0.00030136,6]
[328086308,1716843045164,-500.0,0.00030136,6]
[328086310,1716843045173,-500.0,0.00030136,6]
[328086312,1716843045183,-500.0,0.00030136,6]
[328086314,1716843045193,-500.0,0.00030136,6]
[328086316,1716843045203,-500.0,0.00030136,6]
[328086318,1716843045212,-500.0,0.00030136,6]
[328086320,1716843045222,-500.0,0.00030136,6]
[328086322,1716843045231,-500.0,0.00030136,6]
[328086324,1716843045241,-500.0,0.00030136,6]
[328086326,1716843045251,-500.0,0.00030136,6]
[328086328,1716843045262,-500.0,0.00030136,6]
[328086330,1716843045272,-500.0,0.00030136,6]
[328086333,1716843045281,-500.0,0.00030136,6]
[328086335,1716843045291,-501.84397297,0.00030136,6]
[328086337,1716843045299,-500.0,0.00030136,6]
[328086339,1716843045315,-500.0,0.00030136,6]
[328086341,1716843045324,-500.0,0.00030136,6]
[328086343,1716843045333,-500.0,0.00030136,6]
[328086345,1716843045343,-546.18457451,0.00030136,6]
[328086347,1716843045354,-151.0,0.00030136,7]
[328086350,1716843045364,-500.55693939,0.00030136,6]
[328086351,1716843045374,-500.0,0.00030136,6]
[328086354,1716843045386,-500.0,0.00030136,6]
[328086356,1716843045396,-500.0,0.00030136,6]
[328086358,1716843045407,-500.0,0.00030136,6]
[328086359,1716843045416,-500.0,0.00030136,6]
[328086362,1716843045426,-608.49,0.00030136,6]
[328086364,1716843045436,-608.49,0.00030136,6]
[328086366,1716843045445,-608.49,0.00030136,6]
[328086368,1716843045455,-608.49,0.00030136,6]
[328086370,1716843045464,-608.49,0.00030136,6]
[328086372,1716843045472,-608.49,0.00030136,6]
[328086374,1716843045482,-500.0,0.00030136,6]
[328086376,1716843045491,-608.49,0.00030136,6]
[328086378,1716843045501,-608.49,0.00030136,6]
[328086380,1716843045512,-608.49,0.00030136,6]
[328086382,1716843045521,-608.49,0.00030136,6]
[328086384,1716843045530,-608.49,0.00030136,6]
[328086386,1716843045540,-608.49,0.00030136,6]
[328086388,1716843045550,-608.49,0.00030136,6]
[328086390,1716843045560,-500.0,0.00030136,6]
[328086392,1716843045570,-608.49,0.00030136,6]
[328086394,1716843045579,-608.49,0.00030136,6]
[328086396,1716843045589,-608.49,0.00030136,6]
[328086398,1716843045598,-608.49,0.00030136,6]
[328086400,1716843045608,-608.49,0.00030136,6]
[328086402,1716843045618,-500.0,0.00030136,6]
[328086404,1716843045627,-500.0,0.00030136,6]
[328086406,1716843045637,-500.0,0.00030136,6]
[328086408,1716843045647,-500.0,0.00030136,6]
[328086410,1716843045657,-500.0,0.00030136,6]
[328086412,1716843045667,-572.71254877,0.00030136,6]
[328086414,1716843045676,-500.0,0.00030136,6]
[328086417,1716843045686,-500.0,0.00030136,6]
[328086419,1716843045695,-500.0,0.00030136,6]
[328086421,1716843045705,-500.0,0.00030136,6]
[328086423,1716843045715,-500.0,0.00030136,6]
[328086425,1716843045724,-500.0,0.00030136,6]
[328086427,1716843045734,-500.0,0.00030136,6]
[328086429,1716843045743,-500.0,0.00030136,6]
[328086431,1716843045754,-500.0,0.00030136,6]
[328086433,1716843045764,-500.0,0.00030136,6]
[328086435,1716843045773,-500.0,0.00030136,6]
[328086437,1716843045782,-500.0,0.00030136,6]
[328086439,1716843045792,-500.0,0.00030136,6]
[328086441,1716843045801,-500.0,0.00030136,6]
[328086443,1716843045810,-500.0,0.00030136,6]
[328086445,1716843045820,-500.0,0.00030136,6]
[328086447,1716843045830,-500.0,0.00030136,6]
[328086449,1716843045839,-500.0,0.00030136,6]
[328086451,1716843045848,-500.0,0.00030136,6]
[328086453,1716843045857,-500.0,0.00030136,6]
[328086455,1716843045866,-152.44,0.00030136,6]
[328086457,1716843045876,-500.0,0.00030136,6]
[328086459,1716843045885,-500.0,0.00030136,6]
[328086461,1716843045895,-500.0,0.00030136,6]
[328086463,1716843045904,-500.0,0.00030136,6]
[328086465,1716843045913,-500.0,0.00030136,6]
[328086467,1716843045923,-500.0,0.00030136,6]
[328086469,1716843045932,-515.35655112,0.00030136,6]
[328086471,1716843045943,-500.0,0.00030136,6]
[328086473,1716843045952,-500.0,0.00030136,6]
[328086475,1716843045961,-500.0,0.00030136,6]
[328086477,1716843045970,-508.95175847,0.00030136,6]
[328086479,1716843045980,-500.0,0.00030136,6]
[328086481,1716843045989,-500.0,0.00030136,6]
[328086483,1716843045998,-506.83038341,0.00030136,6]
[328086485,1716843046008,-500.0,0.00030136,6]
[328086487,1716843046017,-500.0,0.00030136,6]
[328086489,1716843046027,-500.0,0.00030136,6]
[328086491,1716843046036,-500.0,0.00030136,6]
[328086493,1716843046045,-500.0,0.00030136,6]
[328086495,1716843046055,-500.0,0.00030136,6]
[328086497,1716843046064,-500.0,0.00030136,6]
[328086499,1716843046073,-500.0,0.00030136,6]
[328086501,1716843046082,-500.0,0.00030136,6]
[328086503,1716843046091,-500.0,0.00030136,6]
[328086505,1716843046100,-500.0,0.00030136,6]
[328086507,1716843046109,-500.0,0.00030136,6]
[328086509,1716843046119,-500.0,0.00030136,6]
[328086511,1716843046128,-500.0,0.00030136,6]
[328086513,1716843046137,-500.0,0.00030136,6]
[328086515,1716843046146,-500.0,0.00030136,6]
[328086517,1716843046155,-500.0,0.00030136,6]
[328086519,1716843046165,-500.0,0.00030136,6]
[328086521,1716843046175,-500.0,0.00030136,6]
[328086523,1716843046184,-500.0,0.00030136,6]
[328086525,1716843046193,-500.0,0.00030136,6]
[328086527,1716843046203,-500.0,0.00030136,6]
[328086529,1716843046212,-500.0,0.00030136,6]
[328086531,1716843046221,-500.0,0.00030136,6]
[328086533,1716843046230,-500.0,0.00030136,6]
[328086535,1716843046240,-500.0,0.00030136,6]
[328086537,1716843046249,-500.0,0.00030136,6]
[328086539,1716843046258,-500.0,0.00030136,6]
[328086541,1716843046268,-500.0,0.00030136,6]
[328086543,1716843046277,-500.0,0.00030136,6]
[328086545,1716843046286,-500.0,0.00030136,6]
[328086548,1716843046296,-500.0,0.00030136,6]
[328086549,1716843046305,-500.0,0.00030136,6]
[328086551,1716843046319,-500.0,0.00030136,6]
[328086553,1716843046328,-500.0,0.00030136,6]
[328086555,1716843046337,-500.0,0.00030136,6]
[328086557,1716843046347,-500.0,0.00030136,6]
[328086560,1716843046357,-500.0,0.00030136,6]
[328086561,1716843046366,-337.94277611,0.00030136,6]
[328086564,1716843046376,-500.0,0.00030136,6]
[328086566,1716843046385,-500.0,0.00030136,6]
[328086567,1716843046396,-500.0,0.00030136,6]
[328086570,1716843046405,-500.0,0.00030136,6]
[328086572,1716843046414,-504.99289414,0.00030136,6]
[328086574,1716843046423,-500.0,0.00030136,6]
[328086576,1716843046432,-500.0,0.00030136,6]
[328086578,1716843046441,-500.0,0.00030136,6]
[328086580,1716843046450,-500.0,0.00030136,6]
[328086582,1716843046459,-500.0,0.00030136,6]
[328086584,1716843046469,-500.0,0.00030136,6]
[328086586,1716843046478,-500.0,0.00030136,6]
[328086588,1716843046487,-500.0,0.00030136,6]
[328086590,1716843046496,-500.0,0.00030136,6]
[328086592,1716843046505,-500.0,0.00030136,6]
[328086594,1716843046514,-500.0,0.00030136,6]
[328086596,1716843046524,-500.0,0.00030136,6]
[328086598,1716843046533,-500.0,0.00030136,6]
[328086600,1716843046542,-500.0,0.00030136,6]
[328086602,1716843046551,-530.04597022,0.00030136,6]
[328086604,1716843046560,-500.0,0.00030136,6]
[328086606,1716843046569,-500.0,0.00030136,6]
[328086608,1716843046579,-500.0,0.00030136,6]
[328086610,1716843046588,-500.0,0.00030136,6]
[328086612,1716843046597,-500.0,0.00030136,6]
[328086614,1716843046606,-500.0,0.00030136,6]
[328086616,1716843046615,-500.0,0.00030136,6]
[328086618,1716843046626,-500.0,0.00030136,6]
[328086620,1716843046635,-500.0,0.00030136,6]